Cogmind - Beta 14 @@@ ROGUE MODE // 2025.01.04 @ 17:43:55 Player: Nueadkie Result: Destroyed by Y-45 Defender with Beam Rifle Performance ------------- Evolutions (2) 1000 Regions Visited (3) 600 Robots Destroyed (31) 155 Value Destroyed (703) 703 Prototype IDs (2) 40 Alien Tech Used (0) 0 Bonus (0) 0 TOTAL SCORE: 2498 Bonus ------- None Cogmind --------- Core Integrity 0/550 Matter 435/500 Energy 77/100 System Corruption 0% Temperature Cool (9) Movement Walking (330) Ox3 Location -8/Materials Parts ------- > --- POWER (1) -------- (None) > --- PROPULSION (4) --- Carbon-fiber Leg > --- UTILITY (4) ------ High-capacity Storage Unit High-capacity Matter Pod > --- WEAPON (2) ------- Spread Laser Mace > --- INVENTORY (20) --- VSS Leg Improved Terrain Scanner Seismic Detector ECM Suite Scrap Shield Hacking Suite Peak State ------------ > --- POWER ------------ (None) > --- PROPULSION ------- Carbon-fiber Leg Carbon-fiber Leg Carbon-fiber Leg Carbon-fiber Leg > --- UTILITY ---------- High-capacity Storage Unit High-capacity Matter Pod > --- WEAPON ----------- Spread Laser Mace > --- INVENTORY -------- VSS Leg Improved Terrain Scanner Seismic Detector ECM Suite Scrap Shield Hacking Suite [Rating: 19] Favorites ----------- Power Ion Engine Engine Ion Engine Propulsion Aluminum Leg Leg Aluminum Leg Utility Seismic Detector Device Seismic Detector Storage High-capacity Storage Unit Processor Signal Interpreter Weapon Assault Rifle Energy Gun Medium Laser Ballistic Gun Assault Rifle Special Weapon Mining Laser Impact Weapon Mace Special Melee Weapon Datajack Build | -11 -10 -10 -8 ------- Run | Yrd Mat Sub Mat Slots Evolved 4 | . . . 4 Power . | . . . . Propulsion 2 | . . . 2 Utility 2 | . . . 2 Weapon . | . . . . Parts Attached 33 | 10 12 . 11 Power 2 | 1 1 . . Engine 2 | 1 1 . . Core . | . . . . Reactor . | . . . . Propulsion 13 | 2 5 . 6 Treads . | . . . . Leg 13 | 2 5 . 6 Wheel . | . . . . Hover . | . . . . Flight . | . . . . Utility 9 | 3 3 . 3 Device 4 | 2 1 . 1 Storage 4 | 1 2 . 1 Processor 1 | . . . 1 Hackware . | . . . . Protection . | . . . . Artifact . | . . . . Weapon 9 | 4 3 . 2 Energy Gun 4 | 2 1 . 1 Energy Cannon . | . . . . Ballistic Gun 2 | 1 1 . . Ballistic Cannon . | . . . . Launcher . | . . . . Special Weapon 1 | 1 . . . Impact Weapon 1 | . . . 1 Slashing Weapon . | . . . . Piercing Weapon . | . . . . Special Melee Weapon 1 | . 1 . . Unidentified Prototypes . | . . . . Parts Lost 16 | . 5 . 11 Power 1 | . 1 . . Propulsion 8 | . 1 . 7 Utility 3 | . 1 . 2 Weapon 4 | . 2 . 2 Highest Loss Streak 8 | . 4 . 8 To Critical Strikes . | . . . . Average Slot Usage (%) 88 | . 95 71 65 Engine 9 | . 12 . . Leg 27 | . 28 28 23 Device 10 | . 12 . 5 Storage 14 | . 13 14 17 Processor 1 | . . . 6 Energy Gun 15 | . 17 14 6 Ballistic Gun 6 | . 8 . . Special Melee Weapon 3 | . 2 14 5 Peak Build Rating 19 | 9 9 6 19 Average Rating 8 | 8 7 6 10 On Entrance 5 | . 9 6 6 Naked Turns . | . . . . Heaviest Build 50 | 14 50 42 49 Greatest Support 60 | 20 20 20 60 Greatest Overweight (x) 15 | 4 2 2 15 Average Overweight (x) . | . 1 2 2 Largest Inventory Capacity 20 | 8 20 20 20 Average Capacity 7 | 5 16 20 20 Most Carried 12 | 5 12 11 11 Average Carried 4 | 4 8 10 6 Final Capacity 20 | 5 20 20 20 Final Carried 11 | 5 9 11 7 Class Distribution -------------------- 98% | Mutant Dominant Class ---------------- Mutant | -10/Materials Mutant | -10/Subcaves Mutant | -8/Materials Resources | -11 -10 -10 -8 ----------- Run | Yrd Mat Sub Mat Matter Collected 811 | 339 360 66 46 Remotely . | . . . . Salvage Created 1038 | 84 859 . 95 Parts 64 | 11 51 . 2 Haulers Intercepted 2 | . 2 . . Recyclers Shooed 1 | . 1 . . Parts Field Recycled . | . . . . Retrieved Matter . | . . . . Parts Self-Destructed . | . . . . Prevented . | . . . . Kills | -11 -10 -10 -8 ------- Run | Yrd Mat Sub Mat Combat Hostiles Destroyed 24 | 3 19 . 2 Melee 1 | . . . 1 Guns 21 | 3 18 . . Classes Destroyed 11 | 2 7 . 2 Builder 1 | . 1 . . Tunneler 4 | 4 . . . Hauler 2 | . 2 . . Recycler 1 | . 1 . . Operator 1 | . 1 . . Watcher 1 | . 1 . . Swarmer 6 | . 6 . . Grunt 13 | . 13 . . Sentry 1 | . . . 1 Hunter 1 | . . . 1 Assembled 3 | 3 . . . Best Kill Streak 4 | 3 4 . 1 Combat Bots Only 3 | 3 3 . 1 Max Kills in Single Turn 2 | 1 2 . 1 Gunslinging . | . . . . Exploded . | . . . . Melee 1 | . . . 1 Uniques/NPCs Destroyed . | . . . . Combat | -11 -10 -10 -8 -------- Run | Yrd Mat Sub Mat Hostile Shots Fired 259 | 3 117 . 139 Missed 64 | 1 35 . 28 Damage Taken 2626 | 24 980 . 1622 Core 799 | . 238 . 561 Absorbed by Shields . | . . . . Core Remaining (%) 52 | 100 . 4 . Volleys Fired 361 | 250 93 1 17 Largest 2 | 2 2 1 1 Hottest 100 | 100 90 40 40 Shots Fired 441 | 262 161 1 17 Gun 204 | 25 161 1 17 Cannon . | . . . . Launcher . | . . . . Special 237 | 237 . . . Kinetic 68 | 13 55 . . Thermal 373 | 249 106 1 17 Explosive . | . . . . Electromagnetic . | . . . . Robot Hit Streak 14 | 5 14 . 8 Robot Miss Streak 4 | 2 4 . 1 Penetration Max . | . . . . Secondary Targets 1 | . 1 . . Max Gunslinging Chain 1 | . 1 . . Shots Hit Robots 150 | 16 113 . 21 Core Hits 53 | 7 43 . 3 Critical Kills . | . . . . Critical Parts Destroyed . | . . . . Critical Strikes 6 | . 5 . 1 Burn 5 | . 5 . . Smash 1 | . . . 1 Melee Attacks 18 | . 11 . 7 Impact 7 | . . . 7 Slashing . | . . . . Piercing . | . . . . Sneak Attacks 6 | . 6 . . Combat Hostiles . | . . . . Follow-up Attacks . | . . . . Damage Inflicted 1824 | 204 1309 . 311 Guns 1668 | 204 1309 . 155 Cannons . | . . . . Explosions . | . . . . Melee 156 | . . . 156 Ramming . | . . . . Kinetic 553 | 111 442 . . Thermal 1115 | 93 867 . 155 Explosive . | . . . . Electromagnetic . | . . . . Impact 156 | . . . 156 Slashing . | . . . . Piercing . | . . . . Highest Corruption 2 | . 2 2 . Average Corruption 1 | . 1 2 . Corruption Purged . | . . . . Corruption Blocked . | . . . . Effects 8 | . 5 3 . Message Errors 1 | . . 1 . Matter Fused 3 | . 2 1 . Heat Flow Errors 3 | . 2 1 . Parts Rejected 1 | . 1 . . Overload Shots . | . . . . Overflow Damage . | . . . . Projectiles . | . . . . Explosions . | . . . . Melee . | . . . . Knockbacks . | . . . . Impact . | . . . . Kinetic . | . . . . Secondary . | . . . . Self-Inflicted Damage . | . . . . Shots . | . . . . Rammed . | . . . . Targets Rammed . | . . . . Kicked . | . . . . Crushed . | . . . . Highest Temperature 337 | 238 337 163 . Average Temperature 66 | 70 48 96 . Received Heat Transfer 1010 | 20 522 . 468 Effects 3 | . 3 . . Interference 3 | . 3 . . Siege Activations . | . . . . Robots Corrupted . | . . . . Combat Hostiles . | . . . . Parts Fried . | . . . . Impact Corruptions . | . . . . Robots Melted 2 | . 1 . 1 Combat Hostiles 2 | . 1 . 1 Parts Melted 7 | . 7 . . Heat Transferred 3249 | 200 2699 . 350 Parts Sabotaged . | . . . . Parts Stolen . | . . . . Parts Stripped . | . . . . Power Chain Reactions . | . . . . Alert | -11 -10 -10 -8 ------- Run | Yrd Mat Sub Mat Peak Influence 248 | 15 248 . 50 Initial 24 | . . . 24 Average 17 | . 120 . 24 Maximum Alert Level 1 | . 1 . . Low Security (%) 98 | 100 89 . 100 Level 1 1 | . 10 . . Level 2 . | . . . . Level 3 . | . . . . Level 4 . | . . . . Level 5 . | . . . . High Security . | . . . . Max Security . | . . . . Squads Dispatched 4 | . 3 . 1 Investigation 3 | . 3 . . Extermination . | . . . . Reinforcement 1 | . . . 1 Assault . | . . . . Garrison . | . . . . Intercept . | . . . . Searches Triggered . | . . . . Construction Impeded . | . . . . Haulers Reinforced . | . . . . Active Scanning Responses . | . . . . Cargo Convoy Interrupts . | . . . . Stealth | -11 -10 -10 -8 --------- Run | Yrd Mat Sub Mat Distress Signals 2 | . 2 . . Communications Jammed . | . . . . Distress Signals . | . . . . Times Spotted 42 | 2 34 . 6 Peak Tracking Total 5 | 1 4 . 5 Tactical Retreats 1 | . 1 . . Traps | -11 -10 -10 -8 ------- Run | Yrd Mat Sub Mat Traps Triggered 3 | . 3 . . Indirectly . | . . . . Trap Hack Attempts . | . . . . Triggered . | . . . . Disarmed . | . . . . Reprogrammed . | . . . . Reused . | . . . . Traps Extracted . | . . . . Installed . | . . . . Triggered . | . . . . Machines | -11 -10 -10 -8 ---------- Run | Yrd Mat Sub Mat Machines Disabled . | . . . . Max in Single Turn . | . . . . Machines Repaired . | . . . . Machines Dismantled . | . . . . Machines Sabotaged . | . . . . Overloaded Fab Kills . | . . . . Hacking | -11 -10 -10 -8 --------- Run | Yrd Mat Sub Mat Machines Accessed 6 | . 6 . . Terminals 5 | . 5 . . Fabricators . | . . . . Repair Stations . | . . . . Recycling Units 1 | . 1 . . Scanalyzers . | . . . . Garrison Access . | . . . . Total Hacks 12 | . 12 . . Successful 5 | . 5 . . Failed 7 | . 7 . . Catastrophic 3 | . 3 . . Database Lockouts . | . . . . Manual 7 | . 7 . . Terminals 9 | . 9 . . Fabricators . | . . . . Repair Stations . | . . . . Recycling Units 3 | . 3 . . Scanalyzers . | . . . . Garrison Access . | . . . . Terminal Hacks 4 | . 4 . . Part Schematic 1 | . 1 . . Prototype ID Bank 1 | . 1 . . Branch Access Points 1 | . 1 . . Transport Status 1 | . 1 . . Fabricator Hacks . | . . . . Repair Station Hacks . | . . . . Recycling Unit Hacks 1 | . 1 . . Report Inventory 1 | . 1 . . Scanalyzer . | . . . . Garrison Access Hacks . | . . . . Unauthorized Hacks . | . . . . Terminals . | . . . . Fabricators . | . . . . Repair Stations . | . . . . Recycling Units . | . . . . Scanalyzers . | . . . . Garrison Access . | . . . . Data Cores Recovered 1 | . 1 . . Used . | . . . . Hacking Detections 4 | . 4 . . Full Trace Events 2 | . 2 . . Feedback Events . | . . . . Feedback Blocked . | . . . . Robot Schematics Acquired . | . . . . Robots Built . | . . . . Authchips . | . . . . Time . | . . . . Total Robot Build Rating . | . . . . Part Schematics Acquired 1 | . 1 . . Parts Built . | . . . . Authchips . | . . . . Time . | . . . . Total Part Build Rating . | . . . . Parts Repaired . | . . . . Time . | . . . . Parts Recycled . | . . . . Recycled Matter . | . . . . Retrieved Matter . | . . . . Retrieved Components . | . . . . Parts Scanalyzed . | . . . . Part Schematics Acquired . | . . . . Parts Damaged . | . . . . Bothacking | -11 -10 -10 -8 ------------ Run | Yrd Mat Sub Mat Used RIF Installer . | . . . . Robots Hacked 4 | . 4 . . Non-combat 3 | . 3 . . Combat 1 | . 1 . . Robot Hacks Applied 4 | . 4 . . parse_system 3 | . 3 . . no_distress 1 | . 1 . . Relay Couplers Released . | . . . . Fabnet Peak Effective % . | . . . . Robots Rewired . | . . . . Allies Hacked . | . . . . Hacks Repelled . | . . . . Allies | -11 -10 -10 -8 -------- Run | Yrd Mat Sub Mat Total Allies . | . . . . Largest Group . | . . . . Highest-Rated Group . | . . . . Highest-Rated Ally . | . . . . Total Orders . | . . . . Ally Attacks . | . . . . Total Damage . | . . . . Kills . | . . . . Allies Corrupted . | . . . . Allies Melted . | . . . . Intel | -11 -10 -10 -8 ------- Run | Yrd Mat Sub Mat Robot Analysis Total . | . . . . Derelict Logs Recovered 1 | . . 1 . Drone Launches . | . . . . Drone Recoveries . | . . . . Exploration | -11 -10 -10 -8 ------------- Run | Yrd Mat Sub Mat Turns Passed 10199 | 8370 1392 142 295 Spaces Moved 2897 | 2279 477 54 87 Core 18 | 10 . . 8 Treads . | . . . . Legs 2879 | 2269 477 54 79 Wheels . | . . . . Hover . | . . . . Flight . | . . . . Fastest Speed 50 | 50 120 260 120 Average Speed 140 | 120 205 260 227 Slowest Speed 800 | 250 260 260 800 Overloaded Moves . | . . . . Propulsion Burnouts . | . . . . Robots Hopped . | . . . . Cave-ins Triggered . | . . . . Exploration Rate (%) 38 | 90 46 6 12 Regions Visited 3 Branch Regions 1 Pre-discovered Areas . | . . . . Known Exits Taken . | . . . . Unknown Exits Taken 3 | 1 1 1 . Scrap Searched . | . . . . Spaces Dug 64 | 64 . . . Terrain Destroyed 79 | 79 . . . Melee . | . . . . Projectile 79 | 79 . . . AOE . | . . . . Terrain Rammed . | . . . . Walls Destroyed . | . . . . Machines Disabled . | . . . . Actions | -11 -10 -10 -8 --------- Run | Yrd Mat Sub Mat Total 8097 | 7166 722 56 153 Wait 4769 | 4623 115 1 30 Move 2894 | 2278 476 53 87 Hop . | . . . . Pick Up 16 | 5 9 1 1 Fast Attach 14 | 7 1 . 6 Attach 9 | . 4 . 5 Detach . | . . . . Swap 10 | 3 7 . . Drop 6 | . 6 . . Fire 361 | 250 93 1 17 Melee 18 | . 11 . 7 Ram . | . . . . Kick . | . . . . Crush . | . . . . Escape Stasis . | . . . . Rewire . | . . . . Trap . | . . . . Miscellaneous . | . . . . Route ------- -11/Scrapyard -10/Materials (discovered 3 exits: [*Mat] / Min / [*Sub]) -10/Subcaves -8/Materials History --------- Turn | Location | Event 22 | -11/Scrapyard | Discovered new exit (range 15) 6886 | -11/Scrapyard | Assembled infested the area 8371 | -11/Scrapyard | Entered Materials 8372 | -10/Materials | Build established: Mutant 8724 | -10/Materials | Discovered new exit (range 12) 8751 | -10/Materials | Identified exit to Mines 8811 | -10/Materials | Core integrity fell below 50% 9569 | -10/Materials | Core integrity fell below 20% 9605 | -10/Materials | Lost 4 parts (1p1n1u1w) 9735 | -10/Materials | Discovered new exit (range 9) 9763 | -10/Materials | Entered Subcaves 9882 | -10/Subcaves | Learned Materials emergency access door positions 9888 | -10/Subcaves | Discovered new exit (range 5) 9905 | -10/Subcaves | Entered Materials 9905 | -8/Materials | Evolved 4 slots: Propulsion x2, Utility x2 10111 | -8/Materials | Core integrity fell below 50% 10136 | -8/Materials | Core integrity fell below 20% 10162 | -8/Materials | Lost 8 parts (4n2u2w) 10200 | -8/Materials | Destroyed by Y-45 Defender with Beam Rifle Last Messages --------------- 10099_ ALERT: Hostiles spotted, dispatching reinforcements to Terminal M006. 10099_ O-24 Administrator locks terminal. 10101_ Sensor Array destroyed. 10110_ Critical hit (Burn: +37). 10126_ Acquired Carbon-fiber Leg. 10131_ Signal Interpreter destroyed. 10133_ Acquired Carbon-fiber Leg. 10143_ Critical hit (Burn: +37). 10151_ Acquired VSS Leg. 10164_ Acquired Spread Laser. 10174_ Acquired Mace. 10185_ Critical hit (Burn: +37). 10187_ Y-45 Defender suffers critical hit (Smash). 10188_ Critical hit (Burn: +37). 10191_ Carbon-fiber Leg destroyed. 10191_ Critical hit (Burn: +37). 10194_ Carbon-fiber Leg destroyed. 10195_ Y-45 Defender destroyed. 10197_ Carbon-fiber Leg destroyed. 10198_ Acquired 46 matter. Map ----- +----------------------------------------------------+ | ?????????????????????????????????????????????????? | | ?????????????????????????????????????????????????? | | ?????????????????????????????????????????????????? | | ?????????????????????????????????????????????????? | | ?????????????????????????????????????????????????? | | ?????????????????????????????????????????????????? | | ?????????????????????????????????????????????????? | | ?????????????????????????????????????????????????? | | ?????????????????????????????????????????????????? | | ?????????????????????????????????????????????????? | | ?????????????????????????????????????????????????? | | ?????????????????????????????????????????????????? | | ?????????????????????????????????????????????????? | | ??????????????????????????????????+??????????????? | | ????????????????????????+????+???????????????????? | | ?????????????????????????????????????????????????? | | ?????????????????????????????????????????????????? | | ?????????????????????????????????????????????????? | | ?????????????????????????????????????????????????? | | ???????????#?????????????????????????????????????? | | ???????????# ????????#######????????????????????? | | ??????????# ####### #????????????????????? | | ??????????? #????????????????????? | | ???????????? Y #????????????????????? | | ????????????????? #????????????????????? | | ??????????????????????# @Y #????????????????????? | | ??????????????????????###/###????????????????????? | | ??????????????????????# =[ #????????????????????? | | ??????????????????????# #????????????????????? | | ??????????????????????# #????????????????????? | | ??????????????????????# """ #????????????????????? | | ??????????????????????# """ #????????????????????# | | ??????????????????????# """ #?????????????######## | | ??????????????????????# #?????????????? | | ??????????????????????# """ #??????????????? | | ??????????????????????# """ #???????????????? | | ??????????????????????# """ ##???????????????? | | ??????????????????????# #????????????????? | | ??????????????????????# !##?????????????????? | | ???????????????????#######+###??????????????????# | | ??????????????????## #??????????????????# | | ??????????????????# #######????????????# | | ??????????????????##=== """ # ############## | | ???????????????????# """%# | | ???????????????????# == """ + ! | | ???????????????????# # | | ???????????????????# ""T"" # ###+####+###### | | ???????????????????# """"" # ##### ! #???? | | ??????????+????????########### #???#! #???? | | ?????????????????????????????# #???# #???? | +----------------------------------------------------+ Best States ------------- Heat Dissipation 31 Energy Generation 10 Energy Capacity 250 Matter Stores 435 Matter Capacity 500 Sight Range 16 Robot Scan Range 14 Terrain Scan Range 16 Terrain Scan Density 10 Evasion (%) 55 Item Schematics ----------------- Sml. Storage Unit | -10/Materials | Hacked Robot Schematics ------------------ None Fabricated ------------ Nothing Alien Tech Used ----------------- None Achievements -------------- Curiosity Killed The Cat Challenges ------------ None Game ------ Seed CoreOmegaPod Manual? 0 Play Time 00:38:36 Cumulative 18.0 hours Start 2025.01.04 @ 16:58:39 End 2025.01.04 @ 17:43:55 Sessions 1 Manual Loads 0 Difficulty Rogue Special Mode None Game No. 20 Rogue 20 Adventurer 0 Explorer 0 Win Type - Total 0 Types 0/0/0/0/0/0/0/0/0 Lore% 11 Gallery% 21 Achievement% 19 Wizard Run 0 Options --------- Layout 0 ASCII 0 Keyboard 0 Movement Vi Keybinds 0 Fullscreen 1 Font 18/SmallcapsGlow Map View 112x50 Zoom Use 0% Tactical HUD 1 Map Filters NONE Filters NONE Steam 1 RUN: d9817eac-b5bd-4687-8843-4202166e74b4